bitfinex-derivatives/quotes_ETHF0:USTF0_20250317
["timestamp","ask_amount","ask_price","bid_price","bid_amount"]
[1742222880924,0.00784559,1912.5,1912.4,7.28481601]
[1742222881131,1.04563,1912.9,1912.4,12.64071601]
[1742222881329,1.04563,1912.9,1912.7,3.2078]
[1742222881631,1.04563,1912.9,1912.8,1.4447]
[1742222882030,1.04563,1912.9,1912.4,1.4169]
[1742222882031,1.04583,1912.5,1912.4,1.4169]
[1742222882223,1.04581,1912.6,1912.4,1.4169]
[1742222882420,1.04581,1912.6,1912.5,3.2078]
[1742222882724,1.04588,1912.4,1912.3,0.00784559]
[1742222882926,3.932,1912.6,1912.3,0.00784559]
[1742222883123,1.04588,1912.4,1912.3,0.00784559]
[1742222883523,1.04588,1912.4,1912.3,3.21564559]
[1742222883724,1.04588,1912.4,1912.3,0.00784559]
[1742222884117,3.933,1912.9,1912.3,3.21564559]
[1742222884335,1.04572,1912.7,1912.6,3.2078]
[1742222884929,3.932,1912.9,1912.6,3.2078]
[1742222885132,1.04572,1912.7,1912.6,3.2078]
[1742222885332,1.04583,1912.5,1912.4,1.4168]
[1742222885525,6.5461,1912.9,1912.4,4.6246]
[1742222885827,1.04583,1912.5,1912.4,1.4168]
[1742222886030,1.04583,1912.5,1912.4,4.6246]
[1742222886435,0.69944559,1913.0,1912.4,4.6246]
[1742222886726,3.93384559,1913.0,1912.7,3.2078]
[1742222887130,1.05344559,1913.0,1912.8,2.6602]
[1742222887325,1.05340559,1913.0,1912.9,1.3318]
[1742222887526,0.00784559,1913.0,1912.9,4.5396]
[1742222887832,1.05340559,1913.0,1912.9,4.5396]
[1742222888029,0.00784559,1913.0,1912.9,4.5396]
[1742222888227,1.05340559,1913.0,1912.9,4.5396]
[1742222888934,0.00784559,1913.0,1912.9,5.58521]
[1742222889932,2.61308,1913.6,1913.0,1.04553]
[1742222890140,1.04534,1913.4,1913.3,3.2078]
[1742222891133,1.04539,1913.3,1913.2,0.00784559]
[1742222891332,1.04539,1913.3,1913.2,1.31924559]
[1742222892033,1.04539,1913.3,1913.2,0.00784559]
[1742222892533,1.13307974,1913.3,1913.2,0.00784559]
[1742222892732,2.61379,1913.1,1912.6,3.2078]
[1742222892928,1.04594,1912.3,1912.2,7.28481601]
[1742222893133,1.04594,1912.3,1912.2,5.2091]
[1742222893327,1.04592,1912.4,1912.2,5.2091]
[1742222893534,1.04594,1912.3,1912.2,5.2091]
[1742222894036,0.00784559,1912.4,1912.2,5.2091]
[1742222894232,1.04594,1912.3,1912.2,5.2091]
[1742222894840,2.47004,1912.3,1912.2,5.2091]
[1742222895339,2.47004,1912.3,1912.2,3.2078]
[1742222896140,2.47004,1912.3,1912.1,0.00784559]
[1742222896141,1.04599,1912.2,1912.1,0.00784559]
[1742222896335,6.38009,1912.2,1912.1,5.59e-06]
[1742222896537,5.42184401,1912.2,1911.8,3.2078]
[1742222896736,1.04615,1912.0,1911.9,1.3985]
[1742222897038,1.0461,1912.0,1911.9,1.3985]
[1742222897241,6.38013,1912.2,1911.9,1.3985]
[1742222897435,1.04605,1912.1,1912.0,3.2078]
[1742222897633,5.3341,1912.2,1912.0,4.6259]
[1742222897828,1.04605,1912.1,1912.0,1.4181]
[1742222898034,1.0461,1912.0,1911.9,0.00784559]
[1742222898237,1.13384971,1912.0,1911.9,0.00784559]
[1742222898431,6.84164971,1912.0,1911.9,5.59e-06]
[1742222898635,7.56224971,1912.0,1911.9,5.59e-06]
[1742222898831,4.85184971,1912.0,1911.9,5.59e-06]
[1742222899040,15.31684971,1912.0,1911.9,5.59e-06]
[1742222900036,2.6154,1911.9,1911.1,0.6558]
[1742222900237,1.04654,1911.3,1911.1,0.6558]
[1742222900537,4.96054,1911.3,1911.2,1.4289]
[1742222900844,1.04654,1911.2,1911.1,0.6558]
[1742222901035,2.36964,1911.2,1911.1,2.0847]
[1742222901237,4.96837559,1911.3,1911.1,2.0847]
[1742222902344,0.00784559,1911.3,1911.2,4.6367]
[1742222903445,0.00784559,1911.3,1911.2,5.68324]
[1742222903747,5.2301,1911.7,1911.2,5.68324]
[1742222903946,5.2301,1911.7,1911.4,3.2078]
[1742222904149,1.04638,1911.5,1911.4,3.2078]
[1742222904941,1.04654,1911.2,1911.1,4.73281601]
[1742222905141,1.04654,1911.2,1911.1,0.6558]
[1742222905335,1.316,1911.4,1911.1,0.6558]
[1742222905336,6.26547,1911.4,1911.1,0.6558]
[1742222905543,3.903,1911.4,1911.2,3.2078]
[1742222905848,1.04641,1911.5,1911.2,3.2078]
[1742222906050,1.05420559,1911.6,1911.4,3.2078]
[1742222906349,0.00784559,1911.6,1911.4,3.2078]
[1742222906540,0.00784559,1911.6,1911.4,4.2542]
[1742222906745,1.04618,1911.9,1911.6,1.04631]
[1742222906945,1.04618,1911.9,1911.8,3.2078]
[1742222908143,1.04621,1911.8,1911.7,0.72]
[1742222908342,1.04632,1911.6,1911.5,0.662]
[1742222908542,1.04638,1911.5,1911.4,3.2078]
[1742222908750,1.04643,1911.4,1911.3,0.72]
[1742222909343,1.04641,1911.5,1911.3,0.72]
[1742222909543,3.895,1911.6,1911.3,0.72]
[1742222909744,1.04637,1911.6,1911.4,3.2078]
[1742222909946,1.04638,1911.5,1911.4,3.2078]
[1742222913251,1.04637,1911.6,1911.4,3.2078]
[1742222913460,1.04636,1911.6,1911.4,3.2078]
[1742222913658,1.3972,1911.7,1911.4,3.2078]
[1742222913659,0.00784559,1912.0,1911.7,1.04625]
[1742222913858,0.00784559,1912.0,1911.8,3.2078]
[1742222914152,0.00784559,1912.0,1911.8,4.573]
[1742222914354,0.00784559,1912.0,1911.9,1.04616]
[1742222914555,0.00784559,1912.0,1911.8,5.61919]
[1742222914750,0.00784559,1912.0,1911.8,4.573]
[1742222914751,1.05396559,1912.0,1911.8,4.573]
[1742222914952,1.04616,1911.9,1911.8,4.573]
[1742222915147,1.04627,1911.7,1911.6,3.2078]
[1742222915554,1.04638,1911.5,1911.4,4.6266]
[1742222916162,40.8,1911.5,1911.4,4.6266]
[1742222916364,1.04638,1911.5,1911.4,4.6266]
[1742222916856,41.84638,1911.5,1911.4,4.6266]
[1742222917661,1.04638,1911.5,1911.4,4.6266]
[1742222918055,41.84633,1911.6,1911.4,5.67299]
[1742222918762,1.04633,1911.6,1911.4,5.67299]
[1742222918951,1.04633,1911.6,1911.5,1.04638]
[1742222919156,1.04631,1911.7,1911.4,8.4946]
[1742222919356,1.04631,1911.7,1911.6,3.2078]
[1742222919565,1.04621,1911.8,1911.6,4.25409]
[1742222920167,41.8462,1911.9,1911.7,1.04627]
[1742222920371,41.8462,1911.9,1911.8,3.2078]
[1742222920861,1.0462,1911.9,1911.8,3.2078]
[1742222922258,6.2523,1911.9,1911.6,3.2078]
[1742222922568,1.04638,1911.5,1911.4,3.2078]
[1742222923159,2.39648,1911.5,1911.4,3.2078]
[1742222924370,1.04654,1911.2,1911.1,4.6227]
[1742222924560,1.04653,1911.3,1911.2,1.4149]
[1742222925760,1.3501,1911.5,1911.3,1.04644]
[1742222925967,2.3965,1911.5,1911.4,3.2078]
[1742222926760,1.3501,1911.5,1911.4,3.2078]
[1742222926965,1.04634,1911.6,1911.4,3.2078]
[1742222927159,2.49224,1911.6,1911.5,1.4167]
[1742222927358,1.04638,1911.5,1911.4,3.2078]
[1742222927565,2.49228,1911.5,1911.4,3.2078]
[1742222927969,40.8,1911.7,1911.4,3.2078]
[1742222927970,1.04636,1911.6,1911.4,3.2078]
[1742222928174,1.04636,1911.6,1911.5,1.364]
[1742222928665,0.00784559,1912.0,1911.7,1.04624]
[1742222928868,1.05398559,1912.0,1911.8,5.61801]
[1742222929072,0.00784559,1912.0,1911.9,2.41016]
[1742222929265,0.00784559,1912.0,1911.9,3.10366]
[1742222930372,1.05394559,1912.0,1911.9,2.0575]
[1742222930668,1.05394559,1912.0,1911.9,1.364]
[1742222931172,1.04616,1911.9,1911.8,3.2078]
[1742222931375,2.49106,1911.9,1911.8,3.2078]
[1742222933674,1.05398559,1912.0,1911.8,3.2078]
[1742222933873,1.33934559,1912.0,1911.9,1.3252]
[1742222934277,0.00784559,1912.0,1911.9,2.37136]
[1742222934568,1e-08,1912.0,1911.9,2.37136]
[1742222935776,1e-08,1912.0,1911.9,6.44837601]
[1742222941273,1.04610001,1912.0,1911.9,5.40221601]
[1742222941575,1e-08,1912.0,1911.9,5.40221601]
[1742222941772,1.04610001,1912.0,1911.9,5.40221601]
[1742222942476,1.04610001,1912.0,1911.9,4.07701601]
[1742222942972,1.04616,1911.9,1911.8,3.2078]
[1742222943273,8.45855,1911.9,1911.4,3.2078]
[1742222943474,1.04637,1911.6,1911.5,1.3808]
[1742222943879,2.393,1911.7,1911.5,2.42717]
[1742222944075,4.86517,1911.9,1911.7,1.04625]
[1742222944272,2.39287,1911.9,1911.8,4.5886]
[1742222944476,1.04627,1911.7,1911.6,7.0258]
[1742222944682,1.3467,1911.9,1911.7,1.04622]
[1742222944981,2.39286,1911.9,1911.8,4.5886]
[1742222945374,2.39286,1911.9,1911.8,3.2078]
[1742222946378,3.96216,1911.9,1911.6,3.2078]
[1742222946579,3.41132601,1911.8,1911.4,8.3415]
[1742222946783,2.40731,1911.7,1911.6,3.2078]
[1742222946979,2.40731,1911.7,1911.6,4.5295]
[1742222947171,2.40731,1911.7,1911.6,3.2078]
[1742222947570,1.361,1911.7,1911.6,3.2078]
[1742222947776,1e-08,1912.0,1911.6,3.2078]
[1742222947777,1.04619,1911.9,1911.7,1.04625]
[1742222947970,2.40719,1911.9,1911.8,4.5295]
[1742222948577,1.361,1911.9,1911.8,5.57571]
[1742222949677,1e-08,1912.0,1911.9,1.04616]
[1742222949870,1e-08,1912.0,1911.9,7.89117601]
[1742222951386,1e-08,1912.0,1911.9,6.84501601]
[1742222951577,1.04610001,1912.0,1911.9,5.41391601]
[1742222951773,1.04610001,1912.0,1911.9,4.07701601]
[1742222952080,1.13385169,1912.0,1911.9,4.07701601]
[1742222952586,1.04616,1911.9,1911.8,3.2078]
[1742222952773,2.44281168,1911.9,1911.8,3.2078]
[1742222953088,6.24781168,1911.9,1911.8,3.2078]
[1742222953278,6.24781168,1911.9,1911.5,0.662]
[1742222953279,1.04632,1911.6,1911.5,3.2078]
[1742222953687,2.35518,1911.7,1911.5,4.25416]
[1742222953987,1.3089,1911.7,1911.6,2.41412]
[1742222954285,1.3089,1911.7,1911.6,1.3678]
[1742222954680,2.35517,1911.7,1911.6,1.3678]
[1742222955982,2.35518,1911.7,1911.5,4.25414]
[1742222956377,1.3089,1911.7,1911.6,2.45702]
[1742222956778,1.3089,1911.7,1911.6,1.4107]
[1742222956779,2.35517,1911.7,1911.6,1.4107]
[1742222956974,1.3089,1911.7,1911.6,2.45702]
[1742222957381,1.04618,1911.9,1911.7,1.04623]
[1742222957686,2.47688,1911.9,1911.8,4.6185]
[1742222958387,1.04627,1911.7,1911.6,3.9229]
[1742222958588,1.04627,1911.7,1911.6,3.2078]
[1742222959088,2.46677,1911.7,1911.6,3.2078]
[1742222960282,1.4205,1911.7,1911.6,5.68182]
[1742222960483,1.4205,1911.7,1911.6,4.6355]
[1742222960891,2.46677,1911.7,1911.6,4.6355]
[1742222961492,1.4205,1911.7,1911.6,5.68182]
[1742222961885,1.04614001,1912.0,1911.7,1.04622]
[1742222962194,1e-08,1912.0,1911.9,4.25396]
[1742222962489,1e-08,1912.0,1911.9,4.93756]
[1742222962686,1.37360001,1912.0,1911.9,6.29836]
[1742222963087,1e-08,1912.0,1911.9,6.29836]
[1742222964389,1.04610001,1912.0,1911.9,5.2522]
[1742222964586,2.47850001,1912.0,1911.9,3.2078]
[1742222964886,2.47850001,1912.0,1911.9,4.5826]
[1742222965086,1.43240001,1912.0,1911.9,5.62876]
[1742222965683,2.47850001,1912.0,1911.9,4.5826]
[1742222965883,1.43240001,1912.0,1911.9,4.5826]
[1742222966083,1.43240001,1912.0,1911.9,5.62876]
[1742222966286,2.47850001,1912.0,1911.9,5.62876]
[1742222966589,1.43240001,1912.0,1911.9,5.62876]
[1742222967185,2.47850001,1912.0,1911.9,4.5826]
[1742222967387,2.47850001,1912.0,1911.9,5.62876]
[1742222967691,1.43240001,1912.0,1911.9,5.62876]
[1742222968394,2.47850001,1912.0,1911.9,5.62876]
[1742222968592,2.47850001,1912.0,1911.9,4.5826]
[1742222968794,2.47850001,1912.0,1911.9,5.62876]
[1742222969186,1.43240001,1912.0,1911.9,5.62876]
[1742222970596,2.47850001,1912.0,1911.9,4.5826]
[1742222971590,1.43240001,1912.0,1911.9,5.62876]
[1742222971785,2.47850001,1912.0,1911.9,4.5826]
[1742222972195,1.43240001,1912.0,1911.9,4.5826]
[1742222972598,2.47850001,1912.0,1911.9,4.5826]
[1742222972994,8.74550001,1912.0,1911.9,3.2078]
[1742222973191,8.83325282,1912.0,1911.9,3.15281371]
[1742222973391,8.83325282,1912.0,1911.5,3.2078]
[1742222973392,1.04632,1911.6,1911.5,3.2078]
[1742222973585,1.04632,1911.6,1911.5,4.5439]
[1742222973989,3.77,1911.7,1911.3,3.2078]
[1742222973990,1.04641,1911.5,1911.3,3.2078]
[1742222974189,1.04643,1911.4,1911.3,4.5439]
[1742222974394,1.04643,1911.4,1911.3,3.2078]
[1742222976488,4.80643,1911.4,1911.3,3.2078]
[1742222976694,1.04654,1911.2,1911.1,3.2078]
[1742222977386,2.45452,1911.3,1911.1,3.2078]
[1742222977587,1.408,1911.3,1911.1,3.2078]
[1742222977792,1.04639,1911.5,1911.2,1.04654]
[1742222977999,1.04639,1911.5,1911.4,3.2078]
[1742222979388,2.7037948,1911.5,1911.0,3.21564559]
[1742222979588,1.0466,1911.1,1911.0,3.21564559]
[1742222979794,3.758,1911.3,1911.0,3.21564559]
[1742222980092,1.04657,1911.2,1911.0,4.26226559]
[1742222980596,4.80451,1911.3,1911.0,3.21564559]
[1742222980798,4.80451,1911.3,1911.1,1.04658]
[1742222981002,4.80449,1911.3,1911.1,1.76558]
[1742222981197,3.758,1911.3,1911.2,1.04654]
[1742222981403,1.13425476,1911.4,1911.2,0.6833]
[1742222981601,1.13425476,1911.4,1911.3,3.2078]
[1742222981798,0.08778476,1911.4,1911.3,4.25429]
[1742222982297,0.08778476,1911.4,1911.3,3.2078]
[1742222982499,0.08778476,1911.4,1911.3,4.25429]
[1742222983803,0.08778476,1911.4,1911.3,3.2078]
[1742222984004,0.08778476,1911.4,1911.3,4.25429]
[1742222988706,1.04627,1911.8,1911.7,1.04625]
[1742222988907,1.04627,1911.8,1911.7,3.2078]
[1742222991008,1.04627,1911.8,1911.7,4.25407]
[1742222991206,4.77316,1911.9,1911.7,4.25407]
[1742222991508,1.04618,1911.9,1911.7,4.25404]
[1742222991899,1e-08,1912.0,1911.7,3.2078]
[1742222992096,1.04614001,1912.0,1911.9,3.2078]
[1742222992806,1.04621,1911.8,1911.7,3.8918]
[1742222993806,1.04621,1911.8,1911.7,3.2078]
[1742222994299,4.76221,1911.8,1911.7,3.2078]
[1742222994501,45.56221,1911.8,1911.7,3.2078]
[1742222994699,46.97701,1911.8,1911.7,3.2078]
[1742222995103,1.04632,1911.6,1911.5,3.2078]
[1742222996611,2.46112,1911.6,1911.5,3.2078]
[1742222998516,2.54821669,1911.6,1911.5,3.2078]
[1742222998708,3.21261669,1911.6,1911.5,3.2078]
[1742222998902,2.61604,1911.5,1911.2,3.2078]
[1742222999110,1.04649,1911.3,1911.2,4.5617]
[1742222999317,1.04649,1911.3,1911.2,1.3539]
[1742222999502,1.04649,1911.3,1911.2,4.5617]
[1742223000618,1.3623,1911.4,1911.2,4.5617]
[1742223000806,2.40873,1911.4,1911.3,1.4097]
[1742223002213,1.04649,1911.3,1911.2,3.2078]
[1742223002420,2.42409,1911.3,1911.2,4.6175]
[1742223004214,1.0466,1911.1,1911.0,3.21564559]
[1742223004609,3.63372003,1911.1,1911.0,0.00784559]
[1742223004810,2.44462003,1911.1,1911.0,0.00784559]
[1742223006011,1.3109,1911.1,1911.0,3.21564559]
[1742223006207,2.3575,1911.1,1911.0,3.21564559]
[1742223006417,2.3575,1911.1,1911.0,3.88814559]
[1742223007718,2.3575,1911.1,1911.0,3.21564559]
[1742223008114,2.3575,1911.1,1911.0,0.00784559]
[1742223008316,1.04682,1910.7,1910.6,3.2078]
[1742223008515,6.30798,1910.8,1910.4,3.2078]
[1742223008817,1.04693,1910.5,1910.4,3.2078]
[1742223009213,41.84693,1910.5,1910.4,3.2078]
[1742223009615,1.04698,1910.4,1910.3,0.00784559]
[1742223009813,1.04698,1910.4,1910.3,3.21564559]
[1742223010320,40.8,1910.5,1910.3,3.21564559]
[1742223010512,1.05472559,1910.6,1910.3,4.26265559]
[1742223010714,0.00784559,1910.6,1910.5,3.2078]
[1742223010914,1.05471559,1910.6,1910.5,3.2078]
[1742223011723,2.49021559,1910.6,1910.5,3.2078]
[1742223012720,1.04698,1910.4,1910.3,0.00784559]
[1742223012911,4.82613517,1910.4,1910.3,0.00784559]
[1742223013223,45.62613517,1910.4,1910.3,0.00784559]
[1742223013911,45.62613967,1910.4,1910.3,0.00784559]
[1742223014116,45.62613975,1910.4,1910.3,0.00784559]
[1742223015423,45.53898,1910.4,1910.3,0.00784559]
[1742223015816,45.62614059,1910.4,1910.3,0.00784559]
[1742223016111,45.62614059,1910.4,1910.3,5.59e-06]
[1742223016318,47.00954059,1910.4,1910.3,5.59e-06]
[1742223017117,6.20953788,1910.4,1910.3,5.59e-06]
[1742223017517,47.00953788,1910.4,1910.3,5.59e-06]
[1742223018119,1.47055837,1910.4,1910.3,5.59e-06]
[1742223018321,3.676,1910.4,1910.3,0.72270559]
[1742223018526,4.72298,1910.4,1910.3,0.72270559]
[1742223018726,1.04698,1910.4,1910.3,0.72270559]
[1742223019118,1.04698,1910.4,1910.3,1.38770559]
[1742223019325,2.38058,1910.4,1910.3,1.38770559]
[1742223020421,1.3336,1910.4,1910.3,1.38770559]
[1742223020623,1.04698,1910.4,1910.3,1.38770559]
[1742223021418,1.04698,1910.4,1910.3,5.59e-06]
[1742223021619,4.80113396,1910.4,1910.3,5.59e-06]
[1742223023026,4.71398,1910.4,1910.3,1.37540559]
[1742223023216,3.666,1910.4,1910.3,1.37540559]
[1742223023419,4.71298,1910.4,1910.3,2.78730559]
[1742223023921,4.80013519,1910.4,1910.3,1.37540559]
[1742223024521,4.71298,1910.4,1910.3,1.37540559]
[1742223025324,1.04698,1910.4,1910.3,1.37540559]
[1742223026416,4.78913305,1910.4,1910.3,5.59e-06]
[1742223027025,4.78914491,1910.4,1910.3,5.59e-06]
[1742223027221,9.30054491,1910.4,1910.3,5.59e-06]
[1742223029529,9.3005466,1910.4,1910.3,5.59e-06]
[1742223029729,9.30054779,1910.4,1910.3,5.59e-06]
[1742223030927,15.17054779,1910.4,1910.3,5.59e-06]
[1742223032922,11.94774779,1910.4,1910.3,5.59e-06]
[1742223034523,15.15555292,1910.4,1910.3,5.59e-06]
[1742223036533,1.04736,1909.7,1909.6,4.5742]
[1742223036832,1.04736,1909.7,1909.6,5.9281]
[1742223037233,2.41286,1909.7,1909.6,5.9281]
[1742223037428,43.21286,1909.7,1909.6,5.9281]
[1742223038926,1.04736,1909.7,1909.6,5.9281]
[1742223039128,2.41286,1909.7,1909.6,5.9281]
[1742223039327,43.21286,1909.7,1909.6,5.9281]
[1742223041534,41.84736,1909.7,1909.6,5.9281]
[1742223042233,43.25626,1909.7,1909.6,5.9281]
[1742223042725,1.04742,1909.6,1909.5,0.00784559]
[1742223042927,6.04882,1909.6,1909.5,0.00784559]
[1742223044030,6.13601597,1909.6,1909.5,0.00784559]
[1742223044230,6.13601597,1909.6,1909.5,5.59e-06]
[1742223044231,8.63601597,1909.6,1909.5,5.59e-06]
[1742223044538,49.43601597,1909.6,1909.5,5.59e-06]
[1742223044730,46.93601597,1909.6,1909.5,5.59e-06]
[1742223044928,47.64581597,1909.6,1909.5,5.59e-06]
[1742223045135,50.14581597,1909.6,1909.5,5.59e-06]
[1742223045432,47.64581597,1909.6,1909.5,5.59e-06]
[1742223045633,50.14581597,1909.6,1909.5,5.59e-06]
[1742223047031,47.64081597,1909.6,1909.5,5.59e-06]
[1742223047928,50.14081597,1909.6,1909.5,5.59e-06]
[1742223048136,47.64081597,1909.6,1909.5,5.59e-06]
[1742223049630,50.14081597,1909.6,1909.5,5.59e-06]
[1742223049827,47.64081597,1909.6,1909.5,5.59e-06]
[1742223050333,50.14083581,1909.6,1909.5,5.59e-06]
[1742223051332,2.61902,1909.3,1908.9,0.691]
[1742223051530,5.82718,1909.0,1908.6,3.2078]
[1742223051738,1.04802,1908.5,1908.4,5.2751]
[1742223051940,4.67102,1908.5,1908.4,5.2751]
[1742223052240,45.47102,1908.5,1908.4,5.2751]
[1742223054234,0.00784559,1908.6,1908.4,5.2751]
[1742223054443,3.618,1908.7,1908.5,2.1387]
[1742223054644,3.618,1908.7,1908.6,4.6211]
[1742223054952,1.04789,1908.8,1908.6,4.6211]
[1742223054953,1.0479,1908.8,1908.6,4.6211]
[1742223055149,1.0479,1908.8,1908.7,1.4467]
[1742223055442,1.04786,1908.8,1908.7,1.4467]
[1742223055745,0.00784559,1908.9,1908.7,1.4467]
[1742223055941,1.04786,1908.8,1908.7,1.4467]
[1742223056245,0.00784559,1908.9,1908.7,5.7024]
[1742223056538,0.00784559,1908.9,1908.8,1.04786]
[1742223056738,0.00784559,1908.9,1908.7,8.2795]
[1742223056952,0.00784559,1908.9,1908.8,1.04786]
[1742223057331,0.00784559,1908.9,1908.7,9.32737]
[1742223057844,1.05564559,1908.9,1908.8,1.04786]
[1742223058043,1.05564559,1908.9,1908.7,8.2795]
[1742223058044,1.05564559,1908.9,1908.7,9.32736]
[1742223058246,1.05564559,1908.9,1908.8,1.04786]
[1742223058445,1.05564559,1908.9,1908.7,9.32738]
[1742223058746,1.04777,1909.0,1908.8,1.04782]
[1742223058941,1.04777,1909.0,1908.9,5.3527]
[1742223059443,2.61861,1909.6,1908.9,11.4697]
[1742223059639,4.66447,1909.5,1909.4,3.2078]
[1742223059942,1.04747,1909.5,1909.4,3.2078]
[1742223060334,1.04753,1909.4,1909.3,0.00784559]
[1742223060534,5.98913,1909.4,1909.3,0.00784559]
[1742223060739,6.07634166,1909.4,1909.3,5.59e-06]
[1742223061349,9.28414737,1909.4,1909.3,5.59e-06]
[1742223061645,15.15414737,1909.4,1909.3,5.59e-06]
[1742223061940,17.65414737,1909.4,1909.3,5.59e-06]
[1742223062147,1.0478,1908.9,1908.8,2.0855]
[1742223062340,4.76103062,1908.9,1908.8,2.0855]
[1742223062536,45.56103062,1908.9,1908.8,1.4312]
[1742223062950,46.91403062,1908.9,1908.8,1.4312]
[1742223063249,1.04797,1908.6,1908.5,0.6543]
[1742223063443,4.68297,1908.6,1908.5,3.8621]
[1742223063643,4.68297,1908.6,1908.5,0.6543]
[1742223064047,4.68297,1908.6,1908.5,2.0855]
[1742223064551,3.635,1908.6,1908.5,2.0855]
[1742223064745,4.68297,1908.6,1908.5,2.0855]
[1742223065343,4.7702117,1908.6,1908.5,2.0855]
[1742223065544,4.77021221,1908.6,1908.5,2.0855]
[1742223066555,4.68297,1908.6,1908.5,2.0855]
[1742223067361,1.13521116,1908.6,1908.5,2.0855]
[1742223067544,1.13521116,1908.6,1908.5,5.9514]
[1742223067545,0.08724116,1908.6,1908.5,5.9514]
[1742223067742,1.04797,1908.6,1908.5,5.9514]
[1742223068347,2.39037,1908.6,1908.5,2.7436]
[1742223068548,1.04797,1908.6,1908.5,2.7436]
[1742223068955,44.0078,1908.9,1908.5,5.9514]
[1742223069151,4.78112535,1908.8,1908.6,1.4265]
[1742223069359,1.04791,1908.7,1908.6,1.4265]
[1742223070148,2.39031,1908.7,1908.6,1.4265]
[1742223071154,1.04791,1908.7,1908.6,1.4265]
[1742223071855,1.04791,1908.7,1908.4,0.00784559]
[1742223071856,1.04802,1908.5,1908.4,0.00784559]
[1742223072059,4.69402,1908.5,1908.4,0.00784559]
[1742223072250,4.78127246,1908.5,1908.4,0.00784559]
[1742223072447,6.17017329,1908.5,1908.4,0.00784559]
[1742223072843,12.04017329,1908.5,1908.4,0.00784559]
[1742223075459,12.12743142,1908.5,1908.4,0.00784559]
[1742223077253,12.12743283,1908.5,1908.4,0.00784559]
[1742223077462,14.62743283,1908.5,1908.4,5.59e-06]
[1742223078361,1.0483,1908.0,1907.9,0.20614088]
[1742223078554,4.78555689,1908.0,1907.9,0.20614088]
[1742223078755,4.78555689,1908.0,1907.9,1.64024088]
[1742223078957,4.78557525,1908.0,1907.9,1.64024088]
[1742223079458,4.78557525,1908.0,1907.9,0.20614088]
[1742223080150,6.18677525,1908.0,1907.9,0.20614088]
[1742223080351,46.98678242,1908.0,1907.9,0.20614088]
[1742223080958,47.58068242,1908.0,1907.9,0.20614088]
[1742223081355,1.04835,1907.9,1907.8,6.47e-06]
[1742223081555,5.74463242,1907.9,1907.8,6.47e-06]
[1742223081962,46.54623749,1907.9,1907.8,6.47e-06]
[1742223082160,1.04846,1907.7,1907.6,8.12e-06]
[1742223082465,1.04846,1907.7,1906.8,2.8446]
[1742223082466,1.0489,1906.9,1906.8,2.8446]
[1742223082757,1.0489,1906.9,1906.7,3.2078]
[1742223082758,3.648,1906.9,1906.7,3.2078]
[1742223082964,4.6969,1906.9,1906.8,2.077]
[1742223083158,4.87473994,1906.9,1906.8,1.3596]
[1742223083361,1.04896,1906.8,1906.7,3.21566637]
[1742223083563,1.13787999,1906.8,1906.7,0.00786637]
[1742223083756,2.55677999,1906.8,1906.7,0.00786637]
[1742223084154,1.04937,1906.1,1905.7,2.40914]
[1742223084359,3.688,1906.3,1906.0,3.2078]
[1742223084561,3.688,1906.3,1906.1,1.3596]
[1742223084765,3.688,1906.3,1906.1,2.077]
[1742223085160,3.688,1906.3,1906.2,1.3596]
[1742223085356,4.73723,1906.3,1906.2,1.3596]
[1742223085967,3.688,1906.3,1906.2,1.3596]
[1742223086162,3.704,1906.5,1906.2,5.61665]
[1742223086465,3.704,1906.5,1906.4,3.2078]
[1742223086664,1.04918,1906.4,1906.3,0.6683]
[1742223086860,1.04923,1906.3,1906.2,1.3596]
[1742223087064,1.04921,1906.4,1906.2,1.3596]
[1742223087272,1.04923,1906.3,1906.2,1.3596]
[1742223087964,3.704,1906.5,1906.2,4.5674]
[1742223088366,4.75314,1906.5,1906.2,4.5674]
[1742223088564,4.75314,1906.5,1906.2,5.61664]
[1742223088760,6.47166637,1907.0,1906.2,5.61664]
[1742223088761,1.04904,1906.7,1906.4,3.2078]
[1742223088964,1.04907,1906.6,1906.5,2.0558]
[1742223089164,1.04904,1906.7,1906.5,3.1049]
[1742223089360,1.04901,1906.7,1906.6,0.7096]
[1742223090264,1.04901,1906.7,1906.6,3.9174]
[1742223091458,40.88891995,1906.9,1906.6,3.9174]
[1742223091659,1.04896,1906.8,1906.7,1.3648]
[1742223091859,3.79091995,1906.9,1906.7,1.3648]
[1742223091860,0.08891995,1906.9,1906.7,1.3648]
[1742223092065,0.08891995,1906.9,1906.8,3.2078]
[1742223092260,0.08891995,1906.9,1906.7,5.44181601]
[1742223092475,1.13785995,1906.9,1906.7,5.44181601]
[1742223092959,0.08891995,1906.9,1906.8,4.25676]
[1742223093272,1.13781995,1906.9,1906.8,3.2078]
[1742223094266,0.08891995,1906.9,1906.8,3.2078]
[1742223094471,0.08891995,1906.9,1906.8,4.25676]
[1742223095669,0.08891995,1906.9,1906.8,6.75676]
[1742223095871,0.00786637,1907.0,1906.9,1.0489]
[1742223096073,0.00786637,1907.0,1906.9,2.3631]
[1742223096272,0.00786637,1907.0,1906.9,4.8631]
[1742223096467,3.698,1907.6,1907.4,1.04857]
[1742223096676,4.74652,1907.6,1907.5,1.3142]
[1742223096866,45.54652,1907.6,1907.5,1.3142]
[1742223097067,45.54652,1907.6,1907.5,4.522]
[1742223097068,41.84852,1907.6,1907.5,4.522]
[1742223097468,41.84852,1907.6,1907.5,1.3142]
[1742223097667,41.84852,1907.6,1907.5,2.0039]
[1742223098975,43.26792,1907.6,1907.5,1.3142]
[1742223099374,1.04857,1907.5,1907.4,0.00786637]
[1742223099564,2.46797,1907.5,1907.4,0.00786637]
[1742223099770,2.46797,1907.5,1907.4,1.38356637]
[1742223100373,44.496,1907.6,1907.4,1.38356637]
[1742223100677,1.04857,1907.5,1907.4,1.38356637]
[1742223101470,1.136773,1907.5,1907.4,0.00786637]
[1742223101672,3.231373,1907.5,1907.4,0.00786637]
[1742223104471,3.14317,1907.5,1907.4,0.00786637]